[Event "Betsys MČR v online bleskovém šachu 2021"]
[Site "Chess.com"]
[Date "2021.04.17"]
[Round "4"]
[White "JohnnyDuck64"]
[Black "PaulS_CR"]
[Result "0-1"]
[WhiteElo "2111"]
[BlackElo "1853"]
[TimeControl "180+1"]
[EndTime "9:37:04 PDT"]
[Termination "Uživatel PaulS_CR zvítězil na čas"]

1. e4 {[%clk 0:03:00.9]} 1... e6 {[%clk 0:02:59.2]} 2. d4 {[%clk 0:03:00.3]}
2... d5 {[%clk 0:02:58.3]} 3. Nc3 {[%clk 0:03:00.2]} 3... Bb4 {[%clk 0:02:57.2]}
4. e5 {[%clk 0:02:59.7]} 4... c5 {[%clk 0:02:57]} 5. a3 {[%clk 0:03:00.2]} 5...
Ba5 {[%clk 0:02:56.7]} 6. b4 {[%clk 0:02:58.1]} 6... cxd4 {[%clk 0:02:56.3]} 7.
Nb5 {[%clk 0:02:57.5]} 7... Bc7 {[%clk 0:02:49.7]} 8. f4 {[%clk 0:02:52.6]} 8...
Nc6 {[%clk 0:02:47.8]} 9. Nf3 {[%clk 0:02:51.6]} 9... a6 {[%clk 0:02:47.3]} 10.
Nbxd4 {[%clk 0:02:49.7]} 10... Nge7 {[%clk 0:02:44.2]} 11. Bb2 {[%clk
0:02:42.8]} 11... Bd7 {[%clk 0:02:41.1]} 12. Bd3 {[%clk 0:02:41.1]} 12... Nxd4
{[%clk 0:02:37.6]} 13. Nxd4 {[%clk 0:02:38.7]} 13... Nc6 {[%clk 0:02:33.6]} 14.
Qe2 {[%clk 0:02:14]} 14... Nxd4 {[%clk 0:02:30]} 15. Bxd4 {[%clk 0:02:12.6]}
15... Bb6 {[%clk 0:02:24.1]} 16. Qe3 {[%clk 0:02:08.4]} 16... Bxd4 {[%clk
0:02:21.9]} 17. Qxd4 {[%clk 0:02:09.3]} 17... g6 {[%clk 0:02:20.1]} 18. O-O
{[%clk 0:02:07.2]} 18... Rc8 {[%clk 0:02:16.1]} 19. Rae1 {[%clk 0:01:55.3]}
19... Qc7 {[%clk 0:02:12.4]} 20. Kh1 {[%clk 0:00:56]} 20... Qc3 {[%clk
0:02:08.9]} 21. Qb6 {[%clk 0:00:50]} 21... Qc7 {[%clk 0:02:01.2]} 22. Qf2 {[%clk
0:00:43.3]} 22... Ba4 {[%clk 0:01:48.1]} 23. Re2 {[%clk 0:00:37.1]} 23... h5
{[%clk 0:01:44.1]} 24. Qh4 {[%clk 0:00:31.1]} 24... Qe7 {[%clk 0:01:38.4]} 25.
Qf2 {[%clk 0:00:29.7]} 25... h4 {[%clk 0:01:33.5]} 26. h3 {[%clk 0:00:20.2]}
26... Rc3 {[%clk 0:01:25.2]} 27. Ra1 {[%clk 0:00:17.7]} 27... Qc7 {[%clk
0:01:23.6]} 28. Rd2 {[%clk 0:00:11.2]} 28... Kd7 {[%clk 0:01:14.2]} 29. Ra2
{[%clk 0:00:09.7]} 29... Qc6 {[%clk 0:01:10.6]} 30. Kh2 {[%clk 0:00:07.7]} 30...
Rh5 {[%clk 0:01:06.6]} 31. Qd4 {[%clk 0:00:05.5]} 31... Rh8 {[%clk 0:00:59.3]}
32. Qe3 {[%clk 0:00:04.8]} 32... Bb5 {[%clk 0:00:53.6]} 33. Bxb5 {[%clk
0:00:04]} 33... axb5 {[%clk 0:00:50.4]} 34. Qd4 {[%clk 0:00:04.1]} 34... Rc8
{[%clk 0:00:46.2]} 35. Qf2 {[%clk 0:00:03]} 35... Rg3 {[%clk 0:00:43.1]} 36. Rd3
{[%clk 0:00:02.7]} 36... Qc4 {[%clk 0:00:41.3]} 37. Rxg3 {[%clk 0:00:01.3]}
37... hxg3+ {[%clk 0:00:40]} 38. Qxg3 {[%clk 0:00:01.2]} 38... Qxa2 {[%clk
0:00:39.6]} 39. f5 {[%clk 0:00:01.4]} 39... gxf5 {[%clk 0:00:34.9]} 0-1

[Event "Betsys MČR v online bleskovém šachu 2021"]
[Site "Chess.com"]
[Date "2021.04.17"]
[Round "4"]
[White "youhy"]
[Black "Dale00007"]
[Result "1-0"]
[WhiteElo "1765"]
[BlackElo "1398"]
[TimeControl "180+1"]
[EndTime "9:37:04 PDT"]
[Termination "Uživatel youhy zvítězil na čas"]

1. d4 {[%clk 0:03:00.9]} 1... Nf6 {[%clk 0:02:58.6]} 2. Nf3 {[%clk 0:02:58]}
2... d5 {[%clk 0:02:56.6]} 3. c4 {[%clk 0:02:57.1]} 3... dxc4 {[%clk 0:02:55.1]}
4. g3 {[%clk 0:02:53.8]} 4... Nc6 {[%clk 0:02:51.4]} 5. Bg2 {[%clk 0:02:52.4]}
5... Bf5 {[%clk 0:02:41.6]} 6. O-O {[%clk 0:02:49.8]} 6... e6 {[%clk 0:02:37.7]}
7. Bg5 {[%clk 0:01:44.5]} 7... Be7 {[%clk 0:02:35.4]} 8. Na3 {[%clk 0:01:30.4]}
8... Nd5 {[%clk 0:02:05.9]} 9. Bxe7 {[%clk 0:01:21.4]} 9... Ndxe7 {[%clk
0:02:02.6]} 10. Nxc4 {[%clk 0:01:19]} 10... O-O {[%clk 0:01:57]} 11. Qa4 {[%clk
0:00:51.4]} 11... a6 {[%clk 0:01:45.5]} 12. Nce5 {[%clk 0:00:40.5]} 12... b5
{[%clk 0:01:28]} 13. Qd1 {[%clk 0:00:30.7]} 13... Rc8 {[%clk 0:01:08.1]} 14. Rc1
{[%clk 0:00:27.9]} 14... Nb4 {[%clk 0:00:57.7]} 15. a3 {[%clk 0:00:25.4]} 15...
Nbd5 {[%clk 0:00:56.5]} 16. Nh4 {[%clk 0:00:21.7]} 16... f6 {[%clk 0:00:40.9]}
17. Nxf5 {[%clk 0:00:19.4]} 17... Nxf5 {[%clk 0:00:40]} 18. Nc6 {[%clk
0:00:18.1]} 18... Qd7 {[%clk 0:00:22.1]} 19. e4 {[%clk 0:00:18.5]} 19... Nde7
{[%clk 0:00:17.2]} 20. exf5 {[%clk 0:00:18.6]} 20... Nxc6 {[%clk 0:00:14.6]} 21.
Bxc6 {[%clk 0:00:18.6]} 21... Qd6 {[%clk 0:00:11.5]} 22. Qb3 {[%clk 0:00:18.2]}
22... Qxd4 {[%clk 0:00:05.1]} 23. Qxe6+ {[%clk 0:00:17.6]} 23... Kh8 {[%clk
0:00:04.9]} 24. Rfd1 {[%clk 0:00:15.7]} 24... Qg4 {[%clk 0:00:02.5]} 25. Rd7
{[%clk 0:00:12.9]} 25... Rfe8 {[%clk 0:00:01.5]} 26. Qf7 {[%clk 0:00:10.7]} 1-0

[Event "Betsys MČR v online bleskovém šachu 2021"]
[Site "Chess.com"]
[Date "2021.04.17"]
[Round "4"]
[White "matej-c"]
[Black "JanBaraCZE"]
[Result "1-0"]
[WhiteElo "1973"]
[BlackElo "1584"]
[TimeControl "180+1"]
[EndTime "9:37:06 PDT"]
[Termination "Uživatel matej-c zvítězil po vzdání soupeře"]

1. d4 {[%clk 0:03:00.9]} 1... c5 {[%clk 0:03:00.9]} 2. dxc5 {[%clk 0:03:00.3]}
2... Qa5+ {[%clk 0:03:00.4]} 3. c3 {[%clk 0:02:56.1]} 3... Qxc5 {[%clk 0:03:00]}
4. Nf3 {[%clk 0:02:56]} 4... Nf6 {[%clk 0:02:59.3]} 5. g3 {[%clk 0:02:55.3]}
5... g6 {[%clk 0:02:59.3]} 6. Bg2 {[%clk 0:02:55]} 6... Bg7 {[%clk 0:02:59.4]}
7. O-O {[%clk 0:02:52.5]} 7... O-O {[%clk 0:02:59.3]} 8. Nbd2 {[%clk 0:02:46.9]}
8... d6 {[%clk 0:02:59.1]} 9. e4 {[%clk 0:02:36.8]} 9... Bg4 {[%clk 0:02:55.6]}
10. Re1 {[%clk 0:02:32.4]} 10... Nbd7 {[%clk 0:02:53.3]} 11. h3 {[%clk
0:02:31.4]} 11... Bxf3 {[%clk 0:02:51.4]} 12. Nxf3 {[%clk 0:02:30.6]} 12... Qc6
{[%clk 0:02:45.8]} 13. Qe2 {[%clk 0:02:17.4]} 13... Nc5 {[%clk 0:02:42.4]} 14.
Nd4 {[%clk 0:02:07.1]} 14... Qa6 {[%clk 0:02:37.7]} 15. Qxa6 {[%clk 0:02:00.4]}
15... Nxa6 {[%clk 0:02:36]} 16. Nb5 {[%clk 0:01:45.2]} 16... Nc5 {[%clk
0:02:33]} 17. Bd2 {[%clk 0:01:37.1]} 17... Nd3 {[%clk 0:02:29.2]} 18. Reb1
{[%clk 0:01:27.9]} 18... Nc5 {[%clk 0:02:19.6]} 19. f3 {[%clk 0:01:26]} 19... a6
{[%clk 0:02:17.9]} 20. Na3 {[%clk 0:01:18.1]} 20... d5 {[%clk 0:01:53.5]} 21. e5
{[%clk 0:01:15.1]} 21... Nfd7 {[%clk 0:01:50.4]} 22. f4 {[%clk 0:01:14.7]} 22...
e6 {[%clk 0:01:41.2]} 23. Be3 {[%clk 0:01:14.5]} 23... f6 {[%clk 0:01:31.8]} 24.
exf6 {[%clk 0:01:11.7]} 24... Bxf6 {[%clk 0:01:29.1]} 25. Nc2 {[%clk 0:01:08.5]}
25... Kg7 {[%clk 0:01:20.8]} 26. Re1 {[%clk 0:01:08]} 26... Nd3 {[%clk
0:01:20.3]} 27. Re2 {[%clk 0:00:56.4]} 27... Nxb2 {[%clk 0:01:19.3]} 28. Rb1
{[%clk 0:00:55.7]} 28... Nc4 {[%clk 0:01:18.7]} 29. Rxb7 {[%clk 0:00:55.6]}
29... Rfd8 {[%clk 0:01:13.1]} 30. Bd4 {[%clk 0:00:53.5]} 30... Bxd4+ {[%clk
0:01:12.1]} 31. Nxd4 {[%clk 0:00:52.6]} 31... Nd6 {[%clk 0:00:56.3]} 32. Nxe6+
{[%clk 0:00:46.7]} 32... Kf6 {[%clk 0:00:50.2]} 33. Nxd8 {[%clk 0:00:42.3]}
33... Rxd8 {[%clk 0:00:48.7]} 34. Bxd5 {[%clk 0:00:35.7]} 34... Nxb7 {[%clk
0:00:47.6]} 35. Bxb7 {[%clk 0:00:34.4]} 35... Nc5 {[%clk 0:00:47.1]} 36. Bf3
{[%clk 0:00:29.4]} 36... Rd1+ {[%clk 0:00:45.9]} 37. Kf2 {[%clk 0:00:29.3]}
37... Rd3 {[%clk 0:00:43.9]} 38. c4 {[%clk 0:00:24.2]} 38... Rd4 {[%clk
0:00:36.5]} 39. Bd5 {[%clk 0:00:24.2]} 39... Na4 {[%clk 0:00:31.3]} 40. Re6+
{[%clk 0:00:23.3]} 40... Kf7 {[%clk 0:00:28.6]} 41. Re4+ {[%clk 0:00:21.7]} 1-0

[Event "Betsys MČR v online bleskovém šachu 2021"]
[Site "Chess.com"]
[Date "2021.04.17"]
[Round "4"]
[White "Richarlito"]
[Black "reflexia64"]
[Result "1-0"]
[WhiteElo "2027"]
[BlackElo "2272"]
[TimeControl "180+1"]
[EndTime "9:37:07 PDT"]
[Termination "Uživatel Richarlito zvítězil na čas"]

1. e4 {[%clk 0:03:00.9]} 1... g6 {[%clk 0:02:59.3]} 2. d4 {[%clk 0:02:59.1]}
2... Bg7 {[%clk 0:02:59.3]} 3. Nc3 {[%clk 0:02:59]} 3... d6 {[%clk 0:02:59.4]}
4. Be3 {[%clk 0:02:55.9]} 4... a6 {[%clk 0:02:57.8]} 5. a4 {[%clk 0:02:50.7]}
5... Nd7 {[%clk 0:02:55.5]} 6. Qd2 {[%clk 0:02:49.6]} 6... b6 {[%clk 0:02:52.7]}
7. f4 {[%clk 0:02:42.5]} 7... c5 {[%clk 0:02:48.7]} 8. Nf3 {[%clk 0:02:40.1]}
8... Bb7 {[%clk 0:02:41.2]} 9. Bc4 {[%clk 0:02:15.8]} 9... cxd4 {[%clk
0:01:51.1]} 10. Bxd4 {[%clk 0:02:06.7]} 10... Ngf6 {[%clk 0:01:40.5]} 11. O-O
{[%clk 0:01:41.8]} 11... O-O {[%clk 0:01:35]} 12. e5 {[%clk 0:01:33.3]} 12...
Ne4 {[%clk 0:00:56.8]} 13. Nxe4 {[%clk 0:01:27]} 13... Bxe4 {[%clk 0:00:55.4]}
14. e6 {[%clk 0:01:20.5]} 14... d5 {[%clk 0:00:19.4]} 15. exf7+ {[%clk
0:01:19.6]} 15... Rxf7 {[%clk 0:00:15.4]} 16. Bxg7 {[%clk 0:01:15.1]} 16... dxc4
{[%clk 0:00:14.7]} 17. Bc3 {[%clk 0:01:06]} 17... Bxf3 {[%clk 0:00:14]} 18. Rxf3
{[%clk 0:01:05]} 18... Nc5 {[%clk 0:00:13.7]} 19. Qe2 {[%clk 0:00:57.4]} 19...
Qd5 {[%clk 0:00:12.3]} 20. Rd1 {[%clk 0:00:54.5]} 20... Qe4 {[%clk 0:00:11.7]}
21. Re3 {[%clk 0:00:33.2]} 21... Qxf4 {[%clk 0:00:11.1]} 22. Rf1 {[%clk
0:00:25.3]} 22... Qxf1+ {[%clk 0:00:09.8]} 23. Qxf1 {[%clk 0:00:25.7]} 23...
Rxf1+ {[%clk 0:00:09.6]} 24. Kxf1 {[%clk 0:00:26.1]} 24... Kf7 {[%clk
0:00:08.1]} 25. Ke2 {[%clk 0:00:23.1]} 25... Rd8 {[%clk 0:00:06.8]} 26. a5
{[%clk 0:00:20.5]} 26... b5 {[%clk 0:00:05.7]} 27. Bb4 {[%clk 0:00:20.9]} 27...
Ne6 {[%clk 0:00:04.5]} 28. Rf3+ {[%clk 0:00:20.3]} 28... Ke8 {[%clk 0:00:04]}
29. Re3 {[%clk 0:00:20.4]} 29... Nf4+ {[%clk 0:00:01]} 30. Kf3 {[%clk
0:00:20.2]} 30... Nd5 {[%clk 0:00:01.2]} 31. Bd2 {[%clk 0:00:14.1]} 31... Nb4
{[%clk 0:00:01.6]} 32. Bxb4 {[%clk 0:00:14]} 32... Rd7 {[%clk 0:00:01.2]} 33. c3
{[%clk 0:00:14]} 1-0

[Event "Betsys MČR v online bleskovém šachu 2021"]
[Site "Chess.com"]
[Date "2021.04.17"]
[Round "4"]
[White "hever99"]
[Black "Pekibeast"]
[Result "0-1"]
[WhiteElo "2101"]
[BlackElo "1873"]
[TimeControl "180+1"]
[EndTime "9:37:07 PDT"]
[Termination "Uživatel Pekibeast zvítězil na čas"]

1. e4 {[%clk 0:03:00.9]} 1... e6 {[%clk 0:02:54.5]} 2. d3 {[%clk 0:03:00.4]}
2... d5 {[%clk 0:02:54.3]} 3. Nd2 {[%clk 0:02:59.9]} 3... Nf6 {[%clk 0:02:54.3]}
4. Ngf3 {[%clk 0:02:59.2]} 4... c5 {[%clk 0:02:53.2]} 5. g3 {[%clk 0:02:58.8]}
5... Nc6 {[%clk 0:02:53.1]} 6. Bg2 {[%clk 0:02:58.7]} 6... Be7 {[%clk
0:02:50.3]} 7. O-O {[%clk 0:02:58.5]} 7... O-O {[%clk 0:02:50.4]} 8. Re1 {[%clk
0:02:58.5]} 8... h6 {[%clk 0:02:46.3]} 9. e5 {[%clk 0:02:34.3]} 9... Nd7 {[%clk
0:02:43.9]} 10. Nf1 {[%clk 0:02:33.1]} 10... f6 {[%clk 0:02:34.2]} 11. exf6
{[%clk 0:02:22.7]} 11... Nxf6 {[%clk 0:02:35.1]} 12. Ne3 {[%clk 0:02:05.4]}
12... b6 {[%clk 0:02:33.3]} 13. c4 {[%clk 0:01:59.8]} 13... d4 {[%clk 0:02:26]}
14. Nxd4 {[%clk 0:01:57.1]} 14... cxd4 {[%clk 0:02:21.4]} 15. Bxc6 {[%clk
0:01:55.9]} 15... dxe3 {[%clk 0:02:21.8]} 16. Bxa8 {[%clk 0:01:55.1]} 16...
exf2+ {[%clk 0:02:22.2]} 17. Kxf2 {[%clk 0:01:51.9]} 17... Bc5+ {[%clk 0:02:22]}
18. Be3 {[%clk 0:01:45.7]} 18... Ng4+ {[%clk 0:02:20.7]} 19. Kg1 {[%clk
0:01:35.3]} 19... Nxe3 {[%clk 0:02:15.3]} 20. Rxe3 {[%clk 0:01:34.4]} 20...
Bxe3+ {[%clk 0:02:16.2]} 21. Kh1 {[%clk 0:01:29.6]} 21... Qc7 {[%clk 0:02:07.6]}
22. Be4 {[%clk 0:00:54.9]} 22... Bb7 {[%clk 0:02:05.2]} 23. Qg4 {[%clk
0:00:52.6]} 23... Rf6 {[%clk 0:01:35.2]} 24. Re1 {[%clk 0:00:47.6]} 24... Bxe4+
{[%clk 0:01:25.7]} 25. Qxe4 {[%clk 0:00:46.5]} 25... Bc5 {[%clk 0:01:18.4]} 26.
d4 {[%clk 0:00:45.8]} 26... Bf8 {[%clk 0:01:17]} 27. d5 {[%clk 0:00:38.6]} 27...
exd5 {[%clk 0:01:16.4]} 28. cxd5 {[%clk 0:00:34.1]} 28... Qd6 {[%clk 0:01:10]}
29. Rc1 {[%clk 0:00:30.3]} 29... Qe7 {[%clk 0:00:57.2]} 30. Qg4 {[%clk
0:00:18.7]} 30... Rd6 {[%clk 0:00:54.4]} 31. Rc6 {[%clk 0:00:11.3]} 31... Qe1+
{[%clk 0:00:48.6]} 32. Kg2 {[%clk 0:00:11]} 32... Qd2+ {[%clk 0:00:47.7]} 33.
Kh3 {[%clk 0:00:10.4]} 33... Qxd5 {[%clk 0:00:46]} 34. Rc8 {[%clk 0:00:08.2]}
34... Qe6 {[%clk 0:00:44.4]} 35. Qxe6+ {[%clk 0:00:05.3]} 35... Rxe6 {[%clk
0:00:45.3]} 36. Ra8 {[%clk 0:00:05.8]} 36... Re7 {[%clk 0:00:41.8]} 37. Rb8
{[%clk 0:00:05.6]} 37... Rc7 {[%clk 0:00:40]} 38. Ra8 {[%clk 0:00:04.7]} 38...
a5 {[%clk 0:00:39]} 39. Kg4 {[%clk 0:00:04.5]} 39... Kf7 {[%clk 0:00:38.3]} 40.
Rb8 {[%clk 0:00:02.8]} 40... Rc4+ {[%clk 0:00:38.3]} 41. Kf5 {[%clk 0:00:02.3]}
41... Rb4 {[%clk 0:00:39.2]} 42. Rb7+ {[%clk 0:00:01.4]} 42... Be7 {[%clk
0:00:38.3]} 0-1

[Event "Betsys MČR v online bleskovém šachu 2021"]
[Site "Chess.com"]
[Date "2021.04.17"]
[Round "4"]
[White "Bohous13"]
[Black "berny643"]
[Result "0-1"]
[WhiteElo "2222"]
[BlackElo "2552"]
[TimeControl "180+1"]
[EndTime "9:37:08 PDT"]
[Termination "Uživatel berny643 zvítězil na čas"]

1. e4 {[%clk 0:03:00.9]} 1... c5 {[%clk 0:02:59.6]} 2. c4 {[%clk 0:03:01.1]}
2... e6 {[%clk 0:02:59.4]} 3. Nc3 {[%clk 0:03:00.6]} 3... Nc6 {[%clk 0:02:58.8]}
4. Nf3 {[%clk 0:03:00.9]} 4... Nd4 {[%clk 0:02:53.9]} 5. d3 {[%clk 0:03:00.4]}
5... d6 {[%clk 0:02:51.6]} 6. g3 {[%clk 0:02:57]} 6... g6 {[%clk 0:02:46.9]} 7.
Bg2 {[%clk 0:02:56.5]} 7... Bg7 {[%clk 0:02:46.5]} 8. O-O {[%clk 0:02:56.5]}
8... Ne7 {[%clk 0:02:46.2]} 9. Nxd4 {[%clk 0:02:56]} 9... Bxd4 {[%clk
0:02:44.4]} 10. Ne2 {[%clk 0:02:48.6]} 10... Bg7 {[%clk 0:02:41]} 11. d4 {[%clk
0:02:47.8]} 11... cxd4 {[%clk 0:02:40.5]} 12. Nxd4 {[%clk 0:02:47.6]} 12... a6
{[%clk 0:02:40.8]} 13. Be3 {[%clk 0:02:47]} 13... O-O {[%clk 0:02:39.6]} 14. Rc1
{[%clk 0:02:46.5]} 14... Bd7 {[%clk 0:02:36.8]} 15. b3 {[%clk 0:02:46]} 15...
Qc7 {[%clk 0:02:31.2]} 16. Qd2 {[%clk 0:02:43.4]} 16... Rfd8 {[%clk 0:02:29.8]}
17. Rfd1 {[%clk 0:02:42.6]} 17... Rac8 {[%clk 0:02:26.9]} 18. h4 {[%clk
0:02:40.5]} 18... Qb8 {[%clk 0:02:25.2]} 19. h5 {[%clk 0:02:35.6]} 19... b5
{[%clk 0:02:23.8]} 20. cxb5 {[%clk 0:02:26.8]} 20... axb5 {[%clk 0:02:22.4]} 21.
Bg5 {[%clk 0:02:19.6]} 21... Bf8 {[%clk 0:01:50.4]} 22. Bh6 {[%clk 0:02:06.1]}
22... Rc5 {[%clk 0:01:41.9]} 23. Bxf8 {[%clk 0:02:04.8]} 23... Rxf8 {[%clk
0:01:40.7]} 24. h6 {[%clk 0:02:04.6]} 24... Rfc8 {[%clk 0:01:37.1]} 25. Rxc5
{[%clk 0:01:57.5]} 25... Rxc5 {[%clk 0:01:36.7]} 26. Nf3 {[%clk 0:01:48.8]}
26... d5 {[%clk 0:01:22.2]} 27. Qg5 {[%clk 0:01:38.8]} 27... Qf8 {[%clk
0:01:20.6]} 28. Ne5 {[%clk 0:01:06.7]} 28... Be8 {[%clk 0:01:20.2]} 29. Ng4
{[%clk 0:01:03.9]} 29... Rc8 {[%clk 0:00:51.7]} 30. Qe5 {[%clk 0:00:49.1]} 30...
Nc6 {[%clk 0:00:51.4]} 31. Qg5 {[%clk 0:00:29.9]} 31... Qe7 {[%clk 0:00:42.4]}
32. Nf6+ {[%clk 0:00:24.5]} 32... Kh8 {[%clk 0:00:42.2]} 33. exd5 {[%clk
0:00:22.6]} 33... exd5 {[%clk 0:00:41.9]} 34. Bxd5 {[%clk 0:00:20]} 34... Rd8
{[%clk 0:00:41.7]} 35. Kg2 {[%clk 0:00:10.4]} 35... Ne5 {[%clk 0:00:38.6]} 36.
Qf4 {[%clk 0:00:04.9]} 36... Rd6 {[%clk 0:00:31.9]} 37. Ne4 {[%clk 0:00:03.7]}
37... Rd8 {[%clk 0:00:28.7]} 38. Nc3 {[%clk 0:00:02.3]} 38... f6 {[%clk
0:00:27.6]} 0-1

[Event "Betsys MČR v online bleskovém šachu 2021"]
[Site "Chess.com"]
[Date "2021.04.17"]
[Round "4"]
[White "HonzaRubes95"]
[Black "karimaster100"]
[Result "0-1"]
[WhiteElo "2503"]
[BlackElo "2257"]
[TimeControl "180+1"]
[EndTime "9:37:09 PDT"]
[Termination "Uživatel karimaster100 zvítězil po vzdání soupeře"]

1. Nf3 {[%clk 0:03:00.9]} 1... Nf6 {[%clk 0:02:58.8]} 2. g3 {[%clk 0:03:00.5]}
2... b6 {[%clk 0:02:57.7]} 3. Bg2 {[%clk 0:02:59.7]} 3... Bb7 {[%clk 0:02:58.1]}
4. c4 {[%clk 0:02:59]} 4... e6 {[%clk 0:02:56.4]} 5. O-O {[%clk 0:02:57.6]} 5...
Be7 {[%clk 0:02:56.8]} 6. d4 {[%clk 0:02:57.7]} 6... O-O {[%clk 0:02:55.7]} 7.
d5 {[%clk 0:02:57.2]} 7... exd5 {[%clk 0:02:54.3]} 8. Nh4 {[%clk 0:02:57.3]}
8... c6 {[%clk 0:02:53.8]} 9. Nf5 {[%clk 0:02:54.4]} 9... dxc4 {[%clk
0:02:48.4]} 10. b3 {[%clk 0:02:15.4]} 10... cxb3 {[%clk 0:02:39.2]} 11. Nxe7+
{[%clk 0:02:15]} 11... Qxe7 {[%clk 0:02:38.2]} 12. axb3 {[%clk 0:02:13.1]} 12...
d5 {[%clk 0:02:33.2]} 13. Nc3 {[%clk 0:01:57.5]} 13... Nbd7 {[%clk 0:02:28]} 14.
Ba3 {[%clk 0:01:55.7]} 14... Nc5 {[%clk 0:02:19.5]} 15. b4 {[%clk 0:01:53.4]}
15... Nce4 {[%clk 0:02:18.8]} 16. Nxe4 {[%clk 0:01:52.6]} 16... Nxe4 {[%clk
0:02:17.9]} 17. b5 {[%clk 0:01:53]} 17... c5 {[%clk 0:02:17.6]} 18. Bb2 {[%clk
0:01:33.2]} 18... d4 {[%clk 0:02:10.1]} 19. e3 {[%clk 0:01:15.9]} 19... dxe3
{[%clk 0:02:07.9]} 20. fxe3 {[%clk 0:01:15.6]} 20... Rad8 {[%clk 0:01:43.9]} 21.
Qg4 {[%clk 0:01:14.3]} 21... f5 {[%clk 0:01:23.8]} 22. Rxf5 {[%clk 0:01:09.8]}
22... Rxf5 {[%clk 0:01:21.4]} 23. Qxf5 {[%clk 0:01:10.1]} 23... Nd6 {[%clk
0:01:13.1]} 24. Qe5 {[%clk 0:01:03.3]} 24... Qxe5 {[%clk 0:01:12.1]} 25. Bxe5
{[%clk 0:01:03.4]} 25... Bxg2 {[%clk 0:01:12.3]} 26. Bxd6 {[%clk 0:00:51.9]}
26... Rxd6 {[%clk 0:01:01.3]} 27. Kxg2 {[%clk 0:00:52]} 27... Rd2+ {[%clk
0:01:01.6]} 28. Kf3 {[%clk 0:00:50]} 28... Rb2 {[%clk 0:01:02.2]} 29. Rxa7
{[%clk 0:00:49]} 29... Rxb5 {[%clk 0:01:02.4]} 30. e4 {[%clk 0:00:45.3]} 30...
c4 {[%clk 0:00:59.6]} 31. Ke3 {[%clk 0:00:45.7]} 31... Rc5 {[%clk 0:00:59.3]}
32. Kd2 {[%clk 0:00:43.4]} 32... c3+ {[%clk 0:00:59.2]} 33. Kc2 {[%clk
0:00:43.6]} 33... b5 {[%clk 0:00:59.2]} 34. Rb7 {[%clk 0:00:43.4]} 34... h6
{[%clk 0:00:56.5]} 35. h4 {[%clk 0:00:38.8]} 35... Kh7 {[%clk 0:00:50.6]} 36. g4
{[%clk 0:00:35.8]} 36... Re5 {[%clk 0:00:44.1]} 37. Kd3 {[%clk 0:00:27.4]} 37...
Rc5 {[%clk 0:00:43.6]} 38. Kc2 {[%clk 0:00:27]} 38... Rc4 {[%clk 0:00:43.7]} 39.
Rxb5 {[%clk 0:00:24.5]} 39... Rxe4 {[%clk 0:00:43.1]} 40. Kxc3 {[%clk
0:00:24.8]} 40... Rxg4 {[%clk 0:00:42.8]} 41. h5 {[%clk 0:00:25.2]} 41... Rg5
{[%clk 0:00:42.7]} 42. Kc4 {[%clk 0:00:15.3]} 42... Rxb5 {[%clk 0:00:37.7]} 43.
Kxb5 {[%clk 0:00:16.2]} 43... Kg8 {[%clk 0:00:36.5]} 44. Kc4 {[%clk 0:00:12.8]}
44... Kf7 {[%clk 0:00:37]} 45. Kd5 {[%clk 0:00:12.4]} 45... Kf6 {[%clk
0:00:37.5]} 0-1

[Event "Betsys MČR v online bleskovém šachu 2021"]
[Site "Chess.com"]
[Date "2021.04.17"]
[Round "4"]
[White "tiger196223"]
[Black "TommyLud"]
[Result "0-1"]
[WhiteElo "1846"]
[BlackElo "2137"]
[TimeControl "180+1"]
[EndTime "9:37:09 PDT"]
[Termination "Uživatel TommyLud zvítězil na čas"]

1. d4 {[%clk 0:03:00.9]} 1... d5 {[%clk 0:02:59.8]} 2. Nf3 {[%clk 0:02:59.8]}
2... Nf6 {[%clk 0:02:59.3]} 3. Bg5 {[%clk 0:02:59.3]} 3... Ne4 {[%clk
0:02:57.9]} 4. Bh4 {[%clk 0:02:57.5]} 4... c5 {[%clk 0:02:56.9]} 5. c3 {[%clk
0:02:57.5]} 5... Nc6 {[%clk 0:02:55.7]} 6. e3 {[%clk 0:02:56.9]} 6... Bf5 {[%clk
0:02:52]} 7. Nbd2 {[%clk 0:02:54.9]} 7... Qb6 {[%clk 0:02:47.6]} 8. Qb3 {[%clk
0:02:53.5]} 8... c4 {[%clk 0:02:42.1]} 9. Qxb6 {[%clk 0:02:51.5]} 9... axb6
{[%clk 0:02:43]} 10. Nxe4 {[%clk 0:02:50.8]} 10... Bxe4 {[%clk 0:02:42.6]} 11.
Nd2 {[%clk 0:02:50]} 11... Bg6 {[%clk 0:02:42.4]} 12. Be2 {[%clk 0:02:42]} 12...
b5 {[%clk 0:02:39.8]} 13. b4 {[%clk 0:02:32.2]} 13... Ra3 {[%clk 0:02:19.5]} 14.
Bf3 {[%clk 0:01:53.6]} 14... e6 {[%clk 0:02:15.7]} 15. O-O {[%clk 0:01:46.2]}
15... Be7 {[%clk 0:01:56.8]} 16. Bxe7 {[%clk 0:01:35.7]} 16... Kxe7 {[%clk
0:01:56.8]} 17. Rfc1 {[%clk 0:01:34.2]} 17... Rha8 {[%clk 0:01:56.5]} 18. e4
{[%clk 0:01:30.6]} 18... dxe4 {[%clk 0:01:55]} 19. Nxe4 {[%clk 0:01:24.1]} 19...
Bxe4 {[%clk 0:01:53.5]} 20. Bxe4 {[%clk 0:01:23.8]} 20... Rxa2 {[%clk
0:01:52.6]} 21. Rxa2 {[%clk 0:01:21.7]} 21... Rxa2 {[%clk 0:01:53.2]} 22. d5
{[%clk 0:01:15.5]} 22... exd5 {[%clk 0:01:33.7]} 23. Bxd5 {[%clk 0:01:14.1]}
23... Ne5 {[%clk 0:01:12.1]} 24. Re1 {[%clk 0:01:00.4]} 24... Kd6 {[%clk
0:01:12.2]} 25. Bxb7 {[%clk 0:00:59.5]} 25... Nd3 {[%clk 0:01:12.3]} 26. Rf1
{[%clk 0:00:51.6]} 26... Rc2 {[%clk 0:01:12]} 27. Be4 {[%clk 0:00:46.5]} 27...
Rxc3 {[%clk 0:01:11]} 28. Bxh7 {[%clk 0:00:45.8]} 28... g6 {[%clk 0:00:50]} 29.
h4 {[%clk 0:00:41.4]} 29... Nxb4 {[%clk 0:00:49.1]} 30. h5 {[%clk 0:00:37.5]}
30... gxh5 {[%clk 0:00:49]} 31. Rd1+ {[%clk 0:00:36.9]} 31... Nd3 {[%clk
0:00:42.6]} 32. Kh2 {[%clk 0:00:30.6]} 32... b4 {[%clk 0:00:42.6]} 33. Rb1
{[%clk 0:00:19.5]} 33... b3 {[%clk 0:00:42.5]} 34. f3 {[%clk 0:00:16.6]} 34...
Kc5 {[%clk 0:00:38.2]} 35. Kg3 {[%clk 0:00:15.8]} 35... Rc2 {[%clk 0:00:37.3]}
36. Rd1 {[%clk 0:00:11.9]} 36... b2 {[%clk 0:00:31.6]} 37. Bxd3 {[%clk
0:00:03.4]} 37... cxd3 {[%clk 0:00:30.6]} 38. Rb1 {[%clk 0:00:03.4]} 38... Kc4
{[%clk 0:00:30.2]} 39. Kf4 {[%clk 0:00:02.5]} 39... Kc3 {[%clk 0:00:30.4]} 40.
Ke3 {[%clk 0:00:02.4]} 40... Rc1 {[%clk 0:00:30.9]} 0-1